bitfinex-derivatives/quotes_ETHF0:USTF0_20260128
["timestamp","ask_amount","ask_price","bid_price","bid_amount"]
[1769601384086,3.67733279,3043.2,3041.6,3.67498249]
[1769601384684,3.68025189,3043.2,3041.3,2.532]
[1769601384888,3.77143243,3042.9,3041.0,6.03033239]
[1769601386592,3.55103489,3042.7,3041.0,3.33069239]
[1769601387893,3.71558489,3042.7,3040.7,2.533]
[1769601388086,3.55103489,3042.7,3040.6,3.36275933]
[1769601388394,3.55103489,3042.5,3040.6,3.36275933]
[1769601389787,3.55103489,3042.9,3041.3,0.16462]
[1769601389988,3.55103489,3042.9,3041.4,3.36275933]
[1769601390489,3.55103489,3042.9,3041.4,3.52736933]
[1769601391992,3.55103489,3042.9,3041.1,3.36275933]
[1769601391993,3.71557489,3042.9,3041.1,3.36275933]
[1769601392184,3.71557489,3042.9,3041.1,3.52738933]
[1769601392394,3.55103489,3042.9,3041.4,3.36275933]
[1769601393588,3.55103489,3042.9,3041.0,3.36275933]
[1769601394594,3.55103489,3042.7,3041.0,3.36275933]
[1769601395188,3.55103489,3042.5,3041.0,3.36275933]
[1769601398197,3.55103489,3042.5,3041.2,3.52737933]
[1769601400096,44.35103489,3042.9,3041.4,3.36275933]
[1769601400393,44.35103489,3042.9,3041.4,3.52736933]
[1769601400598,44.35103489,3042.9,3041.5,0.16461]
[1769601400798,44.35103489,3042.9,3041.6,3.36275933]
[1769601401097,3.55103489,3042.8,3041.6,3.36275933]
[1769601402093,3.55103489,3043.1,3041.6,3.52735933]
[1769601402602,3.55103489,3042.9,3041.6,3.52735933]
[1769601406197,40.8,3043.0,3041.9,3.36275933]
[1769601406402,40.8,3043.0,3041.9,3.52734933]
[1769601407300,0.0029191,3043.2,3042.1,3.36275933]
[1769601407504,3.55103489,3043.7,3042.1,3.36275933]
[1769601407897,40.8,3043.6,3042.1,3.36275933]
[1769601408494,40.80364221,3043.6,3042.1,3.36275933]
[1769601408899,3.55103489,3043.5,3042.2,0.16457]
[1769601409302,3.55103489,3043.5,3042.2,3.52732933]
[1769601411200,3.55103489,3043.5,3042.4,3.52731933]
[1769601411407,40.80364221,3043.6,3042.4,3.52731933]
[1769601412201,44.3546771,3043.6,3042.4,3.52731933]
[1769601412708,3.55103489,3043.5,3042.4,3.36275933]
[1769601413006,3.55103489,3043.5,3041.7,5.79765592]
[1769601413007,3.55103489,3043.5,3042.2,3.36275933]
[1769601415810,3.55103489,3043.5,3042.0,0.16458]
[1769601417211,3.71553489,3043.5,3041.8,3.23171243]
[1769601418909,3.44378943,3043.2,3041.5,3.39632243]
[1769601420716,3.44378943,3043.2,3041.7,3.23171243]
[1769601420910,40.80364221,3043.6,3041.9,3.23171243]
[1769601421217,3.44378943,3043.5,3041.9,3.39630243]
[1769601421716,3.44378943,3043.5,3042.1,3.23171243]
[1769601422212,3.44378943,3043.5,3041.5,5.79765592]
[1769601422213,0.00364221,3043.6,3042.3,3.23171243]
[1769601422408,0.00364221,3043.6,3042.5,3.23171243]
[1769601422810,0.00364221,3043.6,3042.5,3.39626243]
[1769601423904,0.00364221,3043.6,3042.9,3.39624243]
[1769601424115,3.44378943,3044.3,3042.9,3.39624243]
[1769601424415,3.44378943,3044.3,3043.2,3.23171243]
[1769601424615,8.09778943,3044.6,3043.2,3.23171243]
[1769601425004,3.44704455,3044.6,3043.2,3.23537837]
[1769601427510,3.44704455,3044.6,3043.2,0.00366594]
[1769601427916,3.44378943,3043.7,3042.4,3.23171243]
[1769601428816,3.44378943,3043.7,3042.4,0.00267135]
[1769601429014,3.44378943,3043.7,3042.4,3.23438378]
[1769601429412,3.44378943,3044.2,3042.4,3.23438378]
[1769601429922,3.44378943,3044.2,3042.4,3.39894378]
[1769601431118,3.44378943,3044.2,3042.6,3.23171243]
[1769601435525,3.44378943,3044.2,3042.8,3.23171243]
[1769601435723,8.09178943,3044.5,3042.8,3.39625243]
[1769601435925,3.44378943,3044.4,3043.0,3.23171243]
[1769601436928,3.44378943,3044.4,3043.0,3.39624243]
[1769601437231,0.00325512,3044.6,3043.8,3.23171243]
[1769601437426,3.44378943,3045.1,3043.8,3.23171243]
[1769601437628,3.44378943,3045.0,3043.8,3.23171243]
[1769601438336,3.44795331,3045.0,3043.8,3.23171243]
[1769601438825,3.44795331,3045.0,3043.5,3.39621243]
[1769601440126,0.00416388,3045.0,3043.7,3.23171243]
[1769601440325,0.00416388,3045.0,3043.6,0.16449]
[1769601440326,0.00416388,3045.0,3043.9,3.23171243]
[1769601440644,0.16436,3046.1,3044.3,3.23171243]
[1769601440645,3.44378943,3045.7,3044.3,3.23171243]
[1769601440835,44.24378943,3045.7,3044.3,3.23171243]
[1769601441632,3.44378943,3045.6,3044.3,3.39617243]
[1769601441824,0.00281783,3045.7,3044.3,3.39617243]
[1769601442024,3.44378943,3047.3,3045.1,3.23171243]
[1769601442225,3.44378943,3047.3,3045.3,3.23171243]
[1769601443026,3.44640008,3047.3,3045.3,3.23563507]
[1769601444229,3.61070008,3047.3,3045.3,3.23563507]
[1769601448031,3.69675039,3047.1,3045.3,3.23563507]
[1769601448434,0.00261065,3047.3,3045.5,1.55798532]
[1769601448737,3.69675039,3048.2,3046.1,3.36436939]
[1769601448930,3.69675039,3048.2,3046.3,3.36436939]
[1769601449730,3.70099853,3048.2,3046.3,3.36436939]
[1769601449930,3.70099853,3048.2,3046.5,3.36436939]
[1769601450234,3.70099853,3048.2,3045.9,3.36436939]
[1769601450235,3.69675039,3047.9,3045.9,3.36436939]
[1769601450536,3.92784779,3046.9,3045.8,3.288]
[1769601450734,0.2310974,3046.9,3045.9,3.36436939]
[1769601451131,0.2302974,3046.9,3045.9,3.36436939]
[1769601451332,3.92704779,3046.9,3045.9,3.36436939]
[1769601451531,0.2302974,3046.9,3045.9,3.36436939]
[1769601452238,3.69675039,3047.8,3045.9,3.36436939]
[1769601452739,44.49675039,3047.8,3045.9,3.36436939]
[1769601452939,3.69675039,3047.7,3045.9,3.36436939]
[1769601454335,3.86103039,3047.7,3045.9,3.36436939]
[1769601455440,3.69675039,3048.0,3046.0,3.52872939]
[1769601455938,1.928,3048.1,3045.5,3.36436939]
[1769601455939,3.69675039,3047.3,3045.5,3.36436939]
[1769601456139,0.02104917,3046.4,3045.3,1.00392264]
[1769601456441,0.02104917,3046.4,3045.4,3.36436939]
[1769601457138,0.02104917,3045.9,3045.4,3.36436939]
[1769601457442,5.66875039,3046.9,3046.0,1.0]
[1769601457738,1.55798532,3047.9,3046.0,1.0]
[1769601457739,3.69675039,3047.1,3046.0,4.36436939]
[1769601457940,44.49675039,3047.0,3046.0,4.36436939]
[1769601458341,44.50020196,3047.0,3046.0,4.36436939]
[1769601459139,3.70020196,3047.0,3046.0,4.36436939]
[1769601459638,3.70020196,3047.0,3046.0,1.0]
[1769601460342,3.70020196,3047.0,3046.0,4.36436939]
[1769601460945,3.70020196,3047.0,3046.0,1.0]
[1769601461343,3.70020196,3047.0,3046.0,4.36436939]
[1769601461547,3.69675039,3047.8,3046.1,3.36436939]
[1769601461846,8.41175039,3047.8,3046.1,3.36436939]
[1769601462344,3.69675039,3047.7,3046.1,3.36436939]
[1769601462550,8.41740743,3047.7,3046.1,3.36436939]
[1769601463347,8.41740743,3047.7,3046.1,3.52872939]
[1769601463348,4.719,3047.6,3046.1,3.52872939]
[1769601463750,8.41575039,3047.6,3046.1,3.52872939]
[1769601464250,1.55798532,3046.8,3045.4,3.36436939]
[1769601464551,3.69675039,3046.6,3045.3,0.00392264]
[1769601464851,3.69675039,3046.4,3045.3,0.00392264]
[1769601465246,4.732,3046.4,3045.3,3.36829203]
[1769601465549,4.731,3046.5,3045.3,3.36829203]
[1769601466343,3.69675039,3046.6,3045.3,3.36829203]
[1769601466552,8.42875039,3046.6,3045.3,3.36829203]
[1769601467048,3.69675039,3046.6,3045.3,3.36829203]
[1769601467244,8.42475039,3046.6,3045.3,3.36829203]
[1769601467646,3.69675039,3047.1,3045.3,3.36829203]
[1769601467846,3.69675039,3047.6,3046.0,3.36436939]
[1769601468040,3.69675039,3047.5,3046.0,3.52873939]
[1769601469044,3.69675039,3047.3,3046.0,3.36436939]
[1769601470241,8.43175039,3047.3,3046.0,3.36436939]
[1769601470549,3.69675039,3047.3,3046.0,3.36436939]
[1769601470842,3.69940743,3047.7,3046.0,3.36436939]
[1769601471044,8.43540743,3047.7,3046.2,3.36436939]
[1769601471250,3.86103039,3047.6,3045.8,4.78404884]
[1769601471444,3.69675039,3046.9,3045.6,3.36436939]
[1769601472044,3.69675039,3046.7,3045.6,3.36436939]
[1769601472847,8.43475039,3046.7,3045.6,3.36436939]
[1769601473552,3.69675039,3046.7,3045.6,3.36436939]
[1769601474543,3.69675039,3046.7,3045.5,3.36436939]
[1769601474748,8.40807676,3047.0,3045.5,3.36436939]
[1769601476058,3.67307676,3046.9,3045.5,3.36436939]
[1769601477257,3.67307676,3046.9,3045.7,3.68409905]
[1769601477655,3.67307676,3046.4,3045.3,0.00392264]
[1769601478147,3.67307676,3046.2,3044.6,3.68409905]
[1769601478546,40.8,3046.1,3044.6,3.68409905]
[1769601478749,8.41807676,3046.0,3044.6,3.68409905]
[1769601478953,45.547,3046.1,3044.6,3.68409905]
[1769601479154,45.547,3046.1,3044.6,3.68792821]
[1769601479361,49.22007676,3046.1,3044.6,3.85236821]
[1769601479562,3.67307676,3046.0,3044.6,3.85236821]
[1769601480856,3.67307676,3046.0,3044.6,3.68792821]
[1769601481059,3.67307676,3046.0,3044.6,0.00382916]
[1769601481461,3.67307676,3045.8,3044.0,4.78404884]
[1769601481652,3.67307676,3045.8,3043.9,3.84857905]
[1769601481859,3.67307676,3045.6,3043.9,3.68409905]
[1769601482059,3.83746676,3045.6,3043.6,3.68409905]
[1769601482254,3.67307676,3045.4,3043.6,3.68409905]
[1769601482455,3.67307676,3045.1,3043.6,0.00333775]
[1769601482665,1.55798532,3045.2,3043.6,0.00333775]
[1769601482666,3.67307676,3044.9,3043.6,0.00333775]
[1769601483172,3.67307676,3045.2,3043.6,3.8519268]
[1769601483556,3.67307676,3044.6,3043.0,3.68409905]
[1769601484561,3.67307676,3044.6,3043.0,3.68659576]
[1769601485672,40.8,3044.5,3043.0,3.68659576]
[1769601485970,3.67307676,3044.4,3043.0,3.68659576]
[1769601486168,4.752,3044.3,3043.0,3.68659576]
[1769601486464,3.67307676,3044.3,3043.0,3.68659576]
[1769601488263,3.67307676,3044.3,3043.0,0.00249671]
[1769601488767,3.67307676,3044.1,3042.3,3.68409905]
[1769601488969,3.67307676,3043.9,3042.5,3.68409905]
[1769601489363,3.67307676,3043.7,3042.5,3.68409905]
[1769601489558,3.67307676,3043.7,3042.5,3.68676927]
[1769601489759,3.67307676,3043.7,3042.0,0.61909172]
[1769601490063,3.67307676,3043.4,3041.1,3.68409905]
[1769601490259,3.67307676,3042.8,3041.1,3.68409905]
[1769601490572,3.67307676,3042.6,3041.1,3.68409905]
[1769601490966,3.67630226,3042.6,3041.1,3.6871076]
[1769601492170,0.0032255,3042.6,3041.3,3.68409905]
[1769601492371,0.0032255,3042.6,3041.3,3.84871905]
[1769601492572,3.67630226,3042.6,3041.3,3.84871905]
[1769601492772,0.0032255,3042.6,3041.5,3.68409905]
[1769601493670,0.0032255,3042.6,3041.5,3.84870905]
[1769601494170,7.91307676,3043.3,3041.1,0.00300855]
[1769601494171,8.44607676,3043.3,3041.7,3.68409905]
[1769601494371,3.67307676,3043.2,3041.7,3.68409905]
[1769601494865,3.67307676,3043.0,3041.7,3.68409905]
[1769601495066,3.6761024,3043.0,3041.7,3.68409905]
[1769601495972,0.00302564,3043.0,3041.7,3.68409905]
[1769601496569,3.6761024,3043.0,3041.4,3.68409905]
[1769601496875,3.6761024,3043.0,3041.1,0.00300855]
[1769601496876,3.6761024,3043.0,3041.1,3.6871076]
[1769601498078,3.67307676,3042.8,3041.1,3.6871076]
[1769601498774,3.67307676,3042.8,3041.1,3.8517376]
[1769601499171,0.00302564,3043.0,3041.5,3.68409905]
[1769601499478,0.00302564,3043.0,3042.1,3.68409905]
[1769601501277,3.29,3043.8,3042.0,0.16458]
[1769601501278,3.67307676,3044.3,3042.6,3.68409905]
[1769601501477,3.67307676,3044.2,3042.6,3.68409905]
[1769601501780,3.67307676,3044.1,3042.6,3.68409905]
[1769601501977,40.8,3044.2,3042.9,3.68409905]
[1769601502173,40.80339135,3044.2,3042.9,3.68409905]
[1769601502380,0.00339135,3044.2,3042.9,3.68409905]
[1769601502574,3.67646811,3044.2,3042.9,3.68409905]
[1769601503174,3.67646811,3044.2,3043.1,3.68409905]
[1769601503175,0.00339135,3044.2,3043.1,3.68409905]
[1769601503369,3.67307676,3045.4,3043.3,3.68409905]
[1769601503575,3.67307676,3045.2,3043.7,3.68409905]
[1769601504478,3.67307676,3045.2,3043.7,3.68784833]
[1769601504479,3.67726477,3045.2,3043.7,3.68784833]
[1769601505375,0.00418801,3045.2,3043.7,3.85233833]
[1769601506172,0.00418801,3045.2,3043.9,3.50878521]
[1769601507377,3.80075083,3045.2,3044.0,0.16447]
[1769601507776,3.80075083,3045.2,3043.9,3.50878521]
[1769601507981,3.80075083,3045.2,3043.7,0.00374928]
[1769601508380,3.79656282,3045.0,3043.7,0.00374928]
[1769601508878,3.79656282,3045.0,3043.5,3.50878521]
[1769601508879,3.79656282,3045.0,3043.1,3.50878521]
[1769601509880,3.79656282,3045.0,3043.1,3.51160292]
[1769601510380,3.79656282,3044.8,3043.3,3.50878521]
[1769601510883,4.658,3044.7,3043.3,3.50878521]
[1769601511382,4.823,3044.7,3043.3,3.50878521]
[1769601511980,3.79656282,3044.8,3043.3,3.50878521]
[1769601512181,4.824,3044.7,3043.3,3.50878521]
[1769601512574,3.79656282,3044.6,3043.3,3.50878521]
[1769601513476,3.79656282,3044.6,3043.1,0.00281771]
[1769601513682,3.79656282,3044.4,3043.1,0.00281771]
[1769601514276,3.79656282,3044.2,3042.3,3.50878521]
[1769601514676,3.96103282,3044.2,3042.3,3.50878521]
[1769601515380,3.79656282,3044.2,3042.3,3.51148757]
[1769601515578,3.79656282,3044.0,3042.6,3.50878521]
[1769601517086,3.79656282,3044.0,3042.5,0.16456]
[1769601517983,3.79656282,3043.8,3042.3,3.51148757]
[1769601518189,3.79656282,3043.8,3042.3,0.00270236]
[1769601519890,3.79656282,3043.8,3041.9,0.16459]
[1769601520992,3.79656282,3043.8,3041.9,0.16819523]
[1769601521195,3.79656282,3043.8,3041.9,3.67698044]
[1769601522786,5.35481728,3043.8,3041.9,0.00360523]
[1769601522984,3.96105282,3043.7,3041.9,3.51239044]
[1769601524099,3.96105282,3043.7,3041.9,0.00360523]
[1769601526694,3.79656282,3043.5,3041.9,0.00360523]
[1769601526893,3.79656282,3043.3,3041.9,0.00360523]
[1769601527191,3.79656282,3043.1,3041.9,0.00360523]
[1769601527587,3.79656282,3042.9,3041.4,3.50878521]
[1769601527787,3.79656282,3042.9,3041.1,3.50878521]
[1769601527988,3.79656282,3042.7,3041.1,3.50878521]
[1769601528183,0.16454,3042.8,3041.1,3.50878521]
[1769601528184,3.79656282,3042.5,3041.1,3.50878521]
[1769601528385,11.99056282,3042.4,3041.1,3.50878521]
[1769601528695,3.79656282,3042.3,3041.1,3.50878521]
[1769601529083,3.80082312,3042.3,3041.1,0.00387614]
[1769601529289,3.80082312,3042.3,3040.6,3.50878521]
[1769601529493,3.80082312,3042.3,3039.7,7.11591841]
[1769601529494,3.80082312,3042.3,3040.8,3.67343521]
[1769601529793,0.0042603,3042.3,3040.8,3.67343521]
[1769601530193,3.80082312,3042.3,3040.8,3.67343521]
[1769601530392,3.80082312,3042.3,3040.8,3.67739872]
[1769601531288,0.0042603,3042.3,3041.0,3.50878521]
[1769601531487,0.0042603,3042.3,3041.2,3.67341521]
[1769601532485,4.927,3042.2,3041.2,3.67341521]
[1769601532890,8.72356282,3042.2,3041.2,3.67341521]
[1769601533097,3.79656282,3042.1,3040.9,3.50878521]
[1769601533392,0.0042603,3042.3,3040.9,3.50878521]
[1769601533591,40.8,3042.9,3041.7,3.50878521]
[1769601533592,3.79656282,3042.9,3041.7,3.50878521]
[1769601534695,3.79907154,3042.9,3041.7,3.50878521]
[1769601534892,3.79907154,3042.9,3041.1,3.4103812]
[1769601535294,3.79907154,3042.9,3041.1,3.5750112]
[1769601535690,3.62316276,3042.7,3041.3,3.4103812]
[1769601536185,3.62316276,3042.7,3040.9,3.4103812]
[1769601536385,3.62316276,3042.5,3040.9,3.4103812]
[1769601537685,3.62316276,3042.3,3040.9,3.4103812]
[1769601538502,4.941,3042.2,3040.9,3.4103812]
[1769601539501,8.56416276,3042.2,3040.9,3.4103812]
[1769601540011,3.62316276,3042.1,3040.9,3.4103812]
[1769601541097,3.62316276,3042.1,3040.1,5.75194288]
[1769601541098,3.62316276,3041.9,3040.3,3.4103812]
[1769601541301,3.62316276,3041.7,3040.3,3.5750512]
[1769601541504,49.35816276,3041.7,3040.3,3.4103812]
[1769601541800,3.62316276,3041.6,3040.6,3.4103812]
[1769601541998,3.62316276,3041.6,3040.6,3.41277951]
[1769601542702,3.62316276,3041.6,3040.6,0.00239831]
[1769601543703,3.62316276,3041.6,3040.6,3.41277951]
[1769601544909,47.71516276,3042.0,3040.6,3.41277951]
[1769601545203,8.56716276,3042.0,3040.6,3.41277951]
[1769601545408,3.62316276,3042.3,3040.9,3.4103812]
[1769601545716,45.744,3042.2,3040.9,3.4103812]
[1769601546499,4.944,3042.2,3040.9,3.4103812]
[1769601550010,4.944,3042.2,3040.9,3.5750212]
[1769601551005,3.62316276,3042.1,3040.9,3.5750212]
[1769601552218,3.62316276,3042.1,3040.9,0.16464]
[1769601552514,3.62316276,3042.4,3041.1,3.4103812]
[1769601552812,3.62316276,3042.6,3041.3,3.4103812]
[1769601553010,3.62316276,3042.4,3041.3,3.4103812]
[1769601553509,3.62316276,3042.8,3041.6,3.4103812]
[1769601553714,8.56916276,3042.8,3041.6,3.4103812]
[1769601554814,8.56916276,3042.8,3041.6,3.5749812]
[1769601555015,8.57416276,3042.8,3041.6,3.5749812]
[1769601557018,3.62316276,3042.7,3041.2,3.4103812]
[1769601557610,3.62316276,3042.7,3041.2,3.5750012]
[1769601557611,4.958,3042.6,3041.2,3.5750012]
[1769601558215,3.62316276,3042.5,3041.2,3.5750012]
[1769601559113,3.62316276,3042.2,3040.8,3.4103812]
[1769601559319,3.62316276,3042.2,3040.6,0.16705831]
[1769601559506,3.62316276,3042.2,3040.6,3.57743951]
[1769601559710,3.62316276,3042.2,3040.6,3.41277951]
[1769601560017,3.62316276,3042.2,3040.6,0.00239831]
[1769601560408,3.78773276,3042.2,3040.6,0.00239831]
[1769601561013,3.62316276,3042.0,3040.6,0.00239831]
[1769601564316,3.62316276,3041.7,3040.6,0.00239831]
[1769601565110,4.956,3041.6,3040.6,3.51570673]
[1769601565315,3.57110025,3042.0,3040.6,3.51570673]
[1769601566619,3.57110025,3042.0,3040.6,3.68036673]
[1769601568721,4.96,3041.9,3040.6,3.68036673]
[1769601569320,3.57110025,3042.0,3040.6,3.68036673]
[1769601572215,3.51764537,3042.6,3041.3,3.84499718]
[1769601572423,3.51764537,3042.6,3041.6,3.68037718]
[1769601573517,4.964,3042.8,3041.6,3.68037718]
[1769601574315,44.32015409,3042.9,3041.6,3.68037718]
[1769601574510,0.00250872,3042.9,3041.9,3.68037718]
[1769601574716,3.51764537,3043.6,3042.2,3.68037718]
[1769601574917,44.31764537,3043.6,3042.2,3.68037718]
[1769601575523,3.51764537,3043.6,3042.2,3.68037718]
[1769601575729,3.52119565,3043.6,3042.2,3.68037718]
[1769601575925,3.52119565,3043.6,3042.2,3.84494718]
[1769601578924,0.00355028,3043.6,3042.4,3.68037718]
[1769601579517,3.52119565,3043.6,3042.4,3.68037718]
[1769601580517,3.52119565,3043.6,3042.3,0.16456]
[1769601580719,0.00355028,3043.6,3042.3,3.84493718]
[1769601580920,3.52119565,3043.6,3042.3,3.84493718]
[1769601582117,3.52119565,3043.6,3041.7,3.84497718]
[1769601584719,3.51764537,3043.4,3041.7,3.84497718]
[1769601588627,3.51764537,3043.2,3041.4,3.68037718]
[1769601588832,3.51764537,3043.0,3041.4,3.68037718]
[1769601593234,3.51764537,3042.9,3041.1,3.68037718]
[1769601594132,3.51764537,3042.5,3040.8,3.68037718]
[1769601594634,3.67534401,3042.3,3040.8,3.68037718]
[1769601595939,3.67534401,3042.1,3040.8,3.68037718]
[1769601596846,40.8,3042.4,3040.8,3.68037718]
[1769601597138,10.358,3043.1,3041.6,3.64374649]
[1769601597139,3.67534401,3043.0,3041.6,3.64374649]
[1769601597929,44.47534401,3042.9,3041.6,3.64374649]
[1769601598642,3.67534401,3042.8,3041.6,3.64374649]
[1769601599644,3.67534401,3042.8,3041.3,3.80836649]
[1769601599940,3.67534401,3042.8,3041.3,3.64374649]
[1769601600140,3.67534401,3042.8,3041.0,3.64374649]
[1769601600347,3.67534401,3042.6,3040.7,3.80839649]
[1769601600539,3.67534401,3042.4,3040.7,3.64374649]
[1769601600737,3.67534401,3042.2,3040.7,3.64374649]
[1769601601245,3.67534401,3042.2,3040.6,0.00239831]
[1769601601743,3.67534401,3042.2,3040.6,3.6461448]
[1769601602944,5.037,3042.1,3040.6,3.6461448]
[1769601603140,8.71234401,3042.1,3040.6,3.6461448]
[1769601603346,3.26878401,3042.0,3040.6,0.00239831]
[1769601603542,40.8,3041.9,3040.6,0.00239831]
[1769601603744,42.35988383,3041.9,3040.0,3.64374649]
[1769601604048,42.35988383,3041.9,3039.6,3.64374649]
[1769601604440,0.1646,3041.7,3039.6,3.64374649]
[1769601604847,0.1646,3041.7,3039.6,3.64633622]
[1769601605244,8.339,3041.6,3039.6,3.64633622]
[1769601605445,3.67534401,3041.5,3039.6,3.64633622]
[1769601606143,0.16464,3041.1,3039.6,0.00258973]
[1769601606348,3.67534401,3041.0,3039.6,0.00258973]
[1769601607340,3.67534401,3041.0,3039.6,3.64633622]
[1769601607542,0.0037085,3041.1,3039.8,3.80844649]
[1769601609149,0.0037085,3041.1,3039.9,0.16469]
[1769601609450,0.0037085,3041.1,3040.2,3.64374649]
[1769601609645,3.67905251,3041.1,3039.9,3.64374649]
[1769601610346,3.67905251,3041.1,3039.6,3.64633622]
[1769601610643,5.042,3041.0,3039.6,3.81104622]
[1769601610950,8.335,3041.0,3039.6,3.81104622]
[1769601611151,12.01034401,3041.0,3039.6,3.81104622]
[1769601611349,3.67534401,3041.0,3039.6,3.81104622]
[1769601612554,0.0037085,3041.1,3040.0,3.64374649]
[1769601613346,3.67905251,3041.1,3040.0,3.64374649]
[1769601613849,3.67905251,3041.1,3039.6,3.64633622]
[1769601615245,3.67905251,3041.1,3038.7,5.75194288]
[1769601615444,3.67534401,3040.3,3038.5,3.64374649]
[1769601615644,3.84002401,3040.3,3038.5,3.64374649]
[1769601615944,3.67534401,3040.1,3038.5,3.64374649]
[1769601616152,40.8,3040.2,3038.9,3.64374649]
[1769601616447,3.67534401,3040.1,3038.9,3.6470266]
[1769601617252,40.8,3040.2,3038.9,3.6470266]
[1769601617454,3.67534401,3040.4,3039.0,0.16474]
[1769601617652,3.67534401,3040.8,3039.1,3.80848649]
[1769601618051,40.8,3040.7,3039.2,0.16473]
[1769601618353,40.8,3040.7,3039.3,3.64374649]
[1769601618848,0.0037085,3041.1,3039.4,3.64374649]
[1769601619355,0.0037085,3041.1,3039.7,3.64374649]
[1769601619852,3.67905251,3041.1,3039.7,3.64374649]
[1769601623747,3.67534401,3040.4,3038.9,3.6470266]
[1769601623949,3.67534401,3040.9,3038.9,3.6470266]
[1769601624148,3.67534401,3040.9,3039.2,3.64374649]
[1769601624754,40.8,3040.8,3039.2,3.64374649]
[1769601625454,3.56182167,3040.7,3039.2,3.64374649]
[1769601630759,44.36182167,3040.7,3039.2,3.64374649]
[1769601631461,3.57422764,3040.6,3039.2,3.64374649]
[1769601633758,3.57422764,3040.6,3039.2,3.80847649]
[1769601633959,40.8,3040.7,3039.4,3.38191845]
[1769601634261,3.57422764,3040.9,3039.4,3.54663845]
[1769601634759,44.37422764,3040.9,3039.4,3.54663845]
[1769601634959,3.57422764,3040.8,3039.4,3.54663845]
[1769601637665,3.57422764,3040.5,3038.9,3.38519856]
[1769601638263,3.57422764,3040.5,3038.9,0.00328011]
[1769601639664,3.57422764,3040.2,3038.6,3.38191845]
[1769601639863,3.57422764,3040.0,3038.6,3.38191845]
[1769601640364,3.57422764,3039.8,3038.6,3.38191845]
[1769601640759,3.57422764,3039.8,3038.6,3.3860245]
[1769601641063,3.57422764,3039.8,3038.6,0.00410605]
[1769601641257,3.57422764,3039.7,3037.9,3.38191845]
[1769601642262,3.57422764,3039.7,3037.9,3.38573212]
[1769601643456,5.13532699,3039.7,3037.9,0.00381367]
[1769601643656,3.73893764,3039.6,3037.9,0.00381367]
[1769601643866,3.73893764,3039.6,3037.9,3.38573212]
[1769601644166,3.57422764,3039.4,3037.9,3.38573212]
[1769601645259,3.57422764,3039.4,3037.9,3.55053212]
[1769601645457,3.57422764,3039.4,3038.1,3.38191845]
[1769601649368,5.154,3039.5,3038.1,3.54670845]
[1769601650161,5.154,3039.5,3038.3,3.38191845]
[1769601650562,5.154,3039.5,3038.3,3.54669845]
[1769601650862,5.154,3039.5,3038.5,3.38191845]
[1769601651062,40.8,3039.9,3038.5,3.38191845]
[1769601651063,40.8,3039.9,3038.5,3.54668845]
[1769601651263,6.86822764,3040.0,3038.5,3.54668845]
[1769601651264,12.04022764,3040.0,3038.5,3.54668845]
[1769601651460,3.57422764,3039.9,3038.5,3.54668845]
[1769601651759,3.57422764,3039.8,3038.5,3.54668845]
[1769601654064,3.57422764,3039.8,3038.0,3.38191845]
[1769601654668,3.57422764,3039.8,3038.1,0.16479]
[1769601654862,6.6447,3039.8,3037.9,3.37405399]
[1769601655066,3.36214451,3039.7,3037.9,3.37405399]
[1769601658578,3.36214451,3039.4,3037.9,0.00381367]
[1769601658874,3.36214451,3039.2,3037.9,0.00381367]
[1769601659067,3.36214451,3039.2,3037.9,3.37405399]
[1769601661069,3.36214451,3039.2,3037.9,0.00381367]
[1769601661974,3.36214451,3039.2,3038.0,3.37024032]
[1769601662175,3.36214451,3039.2,3037.9,0.00381367]
[1769601662973,3.52688451,3039.2,3037.9,0.00381367]
[1769601663178,3.36214451,3039.2,3037.9,3.37405399]
[1769601663674,3.36214451,3039.2,3037.9,0.00381367]
[1769601664269,3.36214451,3039.1,3037.9,0.00381367]
[1769601664780,3.36214451,3038.9,3037.9,0.00381367]
[1769601665077,3.36544651,3038.9,3037.9,0.00381367]
[1769601665578,3.53019651,3038.9,3037.1,3.37024032]
[1769601665969,3.36214451,3038.7,3037.1,3.37024032]
[1769601666172,3.36214451,3038.5,3037.1,3.37024032]
[1769601666369,3.36214451,3038.5,3037.1,3.37264855]
[1769601668879,5.236,3038.6,3037.1,3.37264855]
[1769601669087,5.236,3038.6,3037.5,3.37024032]
[1769601669780,3.36214451,3038.5,3037.5,3.37024032]
[1769601670079,3.36214451,3038.5,3037.4,3.53507032]
[1769601670380,5.236,3038.6,3037.4,3.53507032]
[1769601670781,3.36214451,3038.5,3037.4,3.53507032]
[1769601671382,3.36214451,3038.5,3037.4,3.37024032]
[1769601671781,3.36214451,3038.5,3037.1,3.37264855]
[1769601672670,3.36214451,3038.5,3037.1,0.00240823]
[1769601672879,3.52691451,3038.5,3036.5,3.37024032]
[1769601673083,3.36214451,3038.0,3036.5,3.37024032]
[1769601673382,3.36214451,3037.8,3036.5,3.37024032]
[1769601673574,3.36214451,3037.6,3036.5,3.37024032]
[1769601673976,3.36214451,3037.6,3036.5,3.37371515]
[1769601674678,3.36214451,3037.5,3036.1,3.37024032]
[1769601675283,5.263,3037.4,3036.1,3.53514032]
[1769601675683,3.36214451,3037.3,3036.1,3.5375959]
[1769601677082,5.263,3037.4,3036.1,3.5375959]
[1769601677285,5.263,3037.4,3036.3,3.37024032]
[1769601677784,3.36214451,3037.3,3036.2,0.1649]
[1769601678688,3.36214451,3037.3,3036.2,3.53514032]
[1769601678890,5.263,3037.4,3036.2,3.53514032]
[1769601679688,8.62514451,3037.4,3036.2,3.53514032]
[1769601680184,5.263,3037.4,3036.4,3.37024032]
[1769601682086,5.263,3037.4,3036.3,3.53513032]
[1769601682287,3.36214451,3037.3,3036.3,3.53513032]
[1769601682981,3.36214451,3037.3,3036.1,0.00245558]
[1769601683690,3.36214451,3037.0,3035.8,0.61909172]
[1769601683989,3.52700451,3037.0,3035.8,0.3600566]
[1769601684692,3.52700451,3037.0,3035.8,0.36342358]
[1769601684693,3.36214451,3037.0,3035.8,0.36342358]
[1769601684881,3.36214451,3037.0,3034.6,3.297]
[1769601685082,1.56390158,3036.1,3034.7,3.86418578]
[1769601685282,2.609,3036.0,3034.7,3.86418578]
[1769601685482,43.409,3036.0,3034.7,3.86418578]
[1769601686079,43.41149155,3036.0,3034.7,3.86655859]
[1769601686285,3.52125731,3035.9,3034.7,3.86655859]
[1769601686485,3.52125731,3035.9,3034.7,0.00237281]
[1769601686986,2.61149155,3036.0,3034.7,0.00237281]
[1769601686987,3.52125731,3035.7,3034.7,0.00237281]
[1769601687588,3.52125731,3035.7,3033.6,3.66952951]
[1769601687785,3.52125731,3035.7,3033.8,3.66952951]
[1769601687977,3.52125731,3035.7,3033.8,3.83454951]
[1769601688581,3.52125731,3035.7,3033.8,3.83813131]
[1769601689289,3.52125731,3035.7,3033.8,3.67311131]
[1769601689493,40.8,3035.8,3034.4,3.66952951]
[1769601689685,40.8,3035.8,3034.5,0.16499]